bitfinex/quotes_SOLUSD_20230113
["timestamp","ask_amount","ask_price","bid_price","bid_amount"]
[1673575547543,117.2401,16.434,16.418,20.0]
[1673575547951,117.2401,16.434,16.419,0.96]
[1673575548163,10.0,16.433,16.418,20.0]
[1673575548589,10.0,16.433,16.419,1.92]
[1673575548805,117.2401,16.434,16.419,11.92]
[1673575549028,1.92,16.433,16.42,113.5751]
[1673575549240,1.92,16.433,16.421,0.96]
[1673575549857,10.0,16.438,16.421,0.96]
[1673575550056,20.0,16.437,16.42,113.5751]
[1673575550267,11.92,16.436,16.421,0.96]
[1673575550485,10.0,16.436,16.421,0.96]
[1673575551544,10.0,16.436,16.422,0.96]
[1673575551757,1.92,16.435,16.422,0.96]
[1673575557315,20.0,16.437,16.423,0.96]
[1673575557957,20.0,16.437,16.424,0.96]
[1673575558153,20.0,16.437,16.425,0.96]
[1673575558368,20.0,16.437,16.426,0.96]
[1673575561214,10.0,16.439,16.422,10.0]
[1673575561423,1.92,16.438,16.423,20.0]
[1673575561635,10.0,16.439,16.424,10.0]
[1673575561979,10.0,16.439,16.425,20.0]
[1673575562588,12.74,16.44,16.425,20.0]
[1673575562788,12.74,16.44,16.426,113.0962]
[1673575563210,12.74,16.44,16.427,20.96]
[1673575563439,1.92,16.439,16.427,20.96]
[1673575564491,1.92,16.439,16.427,20.0]
[1673575568273,12.74,16.44,16.428,0.96]
[1673575568580,10.0,16.442,16.428,1.92]
[1673575569010,10.0,16.442,16.428,18.92]
[1673575569218,10.0,16.442,16.429,20.0]
[1673575569405,10.0,16.442,16.43,17.96]
[1673575569621,10.0,16.442,16.43,17.0]
[1673575570163,10.0,16.443,16.43,17.0]
[1673575570380,10.0,16.443,16.431,0.96]
[1673575570590,10.0,16.443,16.431,1.92]
[1673575571857,10.0,16.443,16.429,20.0]
[1673575571858,12.67,16.44,16.429,20.0]
[1673575572059,0.96,16.439,16.427,20.0]
[1673575572270,0.96,16.438,16.427,20.0]
[1673575574368,0.96,16.437,16.427,20.0]
[1673575574886,0.96,16.436,16.427,20.0]
[1673575575101,0.96,16.435,16.427,20.0]
[1673575575331,0.96,16.434,16.427,20.0]
[1673575575968,10.0,16.438,16.427,20.0]
[1673575576159,1.92,16.437,16.427,20.0]
[1673575578179,10.0,16.438,16.427,20.0]
[1673575578396,12.58,16.44,16.428,1.92]
[1673575578786,12.58,16.44,16.428,11.92]
[1673575579011,10.0,16.445,16.429,20.0]
[1673575579324,10.0,16.445,16.43,1.92]
[1673575579948,73.24,16.45,16.43,11.92]
[1673575580158,20.0,16.446,16.431,17.9851187]
[1673575580365,20.0,16.446,16.432,1.92]
[1673575580782,20.0,16.448,16.432,1.92]
[1673575580993,20.0,16.448,16.432,11.92]
[1673575581306,1.92,16.447,16.432,11.92]
[1673575582564,20.0,16.448,16.432,11.92]
[1673575583417,20.0,16.448,16.429,20.0]
[1673575583838,11.92,16.447,16.429,20.0]
[1673575584251,20.0,16.446,16.429,20.0]
[1673575584465,0.96,16.445,16.429,20.0]
[1673575584690,0.96,16.444,16.429,20.0]
[1673575584909,0.96,16.444,16.43,11.92]
[1673575586467,0.96,16.445,16.43,11.92]
[1673575586680,0.96,16.444,16.43,11.92]
[1673575587626,0.96,16.444,16.43,1.92]
[1673575587846,0.96,16.443,16.43,1.92]
[1673575588060,10.0,16.445,16.43,1.92]
[1673575588369,12.62,16.44,16.429,20.0]
[1673575588561,0.96,16.439,16.429,20.0]
[1673575588974,0.96,16.439,16.427,20.0]
[1673575591511,0.96,16.439,16.427,30.0]
[1673575592559,12.62,16.44,16.427,30.0]
[1673575592773,12.62,16.44,16.428,11.92]
[1673575593203,12.62,16.44,16.429,20.0]
[1673575594251,10.0,16.445,16.429,20.0]
[1673575594446,10.0,16.445,16.43,10.96]
[1673575594660,10.0,16.445,16.431,0.96]
[1673575595406,10.0,16.445,16.432,0.96]
[1673575595622,1.92,16.444,16.432,0.96]
[1673575602470,10.0,16.445,16.432,0.96]
[1673575602666,10.0,16.445,16.433,17.9851187]
[1673575602977,10.0,16.449,16.433,17.9851187]
[1673575602978,109.1958,16.452,16.434,130.4367]
[1673575603186,12.67,16.45,16.434,109.4767]
[1673575603711,10.0,16.449,16.434,109.4767]
[1673575604037,40.46683801,16.449,16.434,109.4767]
[1673575604247,21.92,16.448,16.434,109.4767]
[1673575604553,63.55,16.45,16.435,10.0]
[1673575604749,12.78,16.45,16.435,10.0]
[1673575605191,12.78,16.45,16.436,0.96]
[1673575606026,12.78,16.45,16.436,20.96]
[1673575606852,109.1958,16.452,16.437,0.96]
[1673575607170,109.1958,16.452,16.437,10.96]
[1673575607379,109.1958,16.452,16.438,20.96]
[1673575607813,109.1958,16.452,16.439,0.96]
[1673575608241,109.1958,16.452,16.44,0.96]
[1673575609703,10.0,16.457,16.44,0.96]
[1673575609930,20.0,16.456,16.441,0.96]
[1673575610636,20.0,16.456,16.439,119.8861]
[1673575610874,20.0,16.456,16.44,0.96]
[1673575611180,1.92,16.455,16.44,0.96]
[1673575611583,11.92,16.455,16.44,0.96]
[1673575613069,11.92,16.455,16.44,1.92]
[1673575613908,11.92,16.455,16.44,0.96]
[1673575614308,11.92,16.455,16.441,0.96]
[1673575615480,11.92,16.455,16.439,119.8861]
[1673575615886,11.92,16.455,16.44,1.92]
[1673575616543,10.0,16.455,16.44,1.92]
[1673575616744,20.0,16.456,16.441,10.0]
[1673575618008,20.0,16.457,16.441,10.0]
[1673575618211,1.92,16.456,16.441,10.0]
[1673575619171,12.78,16.46,16.443,10.0]
[1673575619483,12.78,16.46,16.443,118.3216]
[1673575619686,12.78,16.46,16.444,20.0]
[1673575620092,12.78,16.46,16.445,10.0]
[1673575620340,12.78,16.46,16.446,136.9022]
[1673575620764,12.78,16.46,16.447,10.96]
[1673575621169,12.78,16.46,16.446,135.9422]
[1673575621170,12.78,16.46,16.448,20.0]
[1673575621503,10.0,16.459,16.448,20.0]
[1673575621694,10.0,16.459,16.446,115.9422]
[1673575621903,20.0,16.458,16.443,108.3216]
[1673575622222,1.92,16.457,16.443,108.3216]
[1673575622440,11.92,16.457,16.443,108.3216]
[1673575622759,50.46683801,16.456,16.443,108.3216]
[1673575623163,11.92,16.455,16.443,108.3216]
[1673575627818,20.0,16.456,16.444,0.96]
[1673575627999,20.0,16.456,16.444,10.96]
[1673575628209,10.0,16.458,16.444,0.96]
[1673575628647,20.0,16.457,16.444,0.96]
[1673575629174,20.0,16.457,16.443,108.3216]
[1673575629383,11.92,16.456,16.443,108.3216]
[1673575632427,10.0,16.455,16.44,115.9422]
[1673575632618,12.65,16.45,16.434,109.4767]
[1673575632824,1.92,16.449,16.435,130.1046]
[1673575633038,21.92,16.449,16.435,110.1046]
[1673575633260,10.0,16.448,16.435,110.1046]
[1673575633575,20.96,16.447,16.435,110.1046]
[1673575633769,0.96,16.446,16.435,110.1046]
[1673575633976,0.96,16.445,16.435,110.1046]
[1673575640303,0.96,16.444,16.435,110.1046]
[1673575644947,0.96,16.445,16.435,110.1046]
[1673575645459,10.0,16.446,16.435,110.1046]
[1673575648611,10.0,16.45,16.435,110.1046]
[1673575648612,10.0,16.45,16.436,21.92]
[1673575648824,10.0,16.457,16.436,21.92]
[1673575649011,40.46683801,16.457,16.437,10.0]
[1673575649221,40.46683801,16.456,16.438,20.96]
[1673575649975,1.92,16.455,16.439,0.96]
[1673575650378,40.46683801,16.456,16.44,0.96]
[1673575651559,10.0,16.456,16.44,0.96]
[1673575651763,1.92,16.455,16.44,0.96]
[1673575657140,40.46683801,16.456,16.44,0.96]
[1673575658497,0.96,16.455,16.44,0.96]
[1673575658717,0.96,16.454,16.44,0.96]
[1673575659344,0.96,16.454,16.441,0.96]
[1673575659744,40.46683801,16.456,16.442,0.96]
[1673575660074,588.1,16.469,16.442,0.96]
[1673575660075,12.78,16.46,16.442,0.96]
[1673575660269,12.78,16.46,16.443,0.96]
[1673575660481,12.78,16.46,16.443,112.4455]
[1673575660708,12.78,16.46,16.445,10.0]
[1673575660896,10.0,16.458,16.443,111.4855]
[1673575661112,20.0,16.457,16.443,111.4855]
[1673575661336,10.0,16.455,16.443,111.4855]
[1673575661549,0.96,16.454,16.443,111.4855]
[1673575661949,0.96,16.453,16.443,111.4855]
[1673575662163,0.96,16.452,16.443,111.4855]
[1673575662387,0.96,16.451,16.443,111.4855]
[1673575662593,0.96,16.452,16.443,111.4855]
[1673575662808,0.96,16.453,16.443,111.4855]
[1673575663025,1.92,16.453,16.443,111.4855]
[1673575664490,0.96,16.453,16.443,111.4855]
[1673575664798,0.96,16.452,16.443,111.4855]
[1673575665017,0.96,16.452,16.442,110.9942]
[1673575665447,0.96,16.453,16.442,110.9942]
[1673575665964,0.96,16.452,16.442,110.9942]
[1673575667751,0.96,16.453,16.442,110.9942]
[1673575668388,0.96,16.452,16.442,110.9942]
[1673575668597,0.96,16.453,16.443,118.1911]
[1673575668812,0.96,16.452,16.443,118.1911]
[1673575670081,12.62,16.45,16.443,118.1911]
[1673575674994,0.96,16.449,16.443,118.1911]
[1673575675428,12.62,16.45,16.443,118.1911]
[1673575675840,1.92,16.449,16.443,118.1911]
[1673575680989,12.62,16.45,16.443,118.1911]
[1673575697505,20.0,16.457,16.444,10.0]
[1673575697693,20.0,16.458,16.446,10.0]
[1673575697904,20.0,16.459,16.446,10.0]
[1673575698343,20.0,16.459,16.447,1.92]
[1673575698556,12.78,16.46,16.447,1.92]
[1673575698743,1.92,16.459,16.447,21.92]
[1673575699802,12.78,16.46,16.447,21.92]
[1673575700006,10.0,16.462,16.448,10.0]
[1673575700238,10.0,16.462,16.449,20.0]
[1673575700448,10.0,16.462,16.45,10.0]
[1673575701171,1.92,16.461,16.45,10.0]
[1673575702452,1.92,16.461,16.45,9.91268351]
[1673575702976,10.0,16.462,16.45,9.91268351]
[1673575703165,10.0,16.463,16.45,9.91268351]
[1673575703376,1.92,16.462,16.45,9.91268351]
[1673575703588,10.0,16.468,16.45,9.91268351]
[1673575703914,10.0,16.468,16.451,1.92]
[1673575704317,10.0,16.468,16.453,10.0]
[1673575704647,10.0,16.468,16.452,115.2056]
[1673575704866,28.92,16.465,16.452,115.2056]
[1673575705175,11.92,16.465,16.452,115.2056]
[1673575705375,42.38683801,16.465,16.452,115.2056]
[1673575706004,40.46683801,16.465,16.452,115.2056]
[1673575706777,10.0,16.465,16.452,115.2056]
[1673575707800,1.92,16.464,16.452,115.2056]
[1673575711279,37.93507746,16.466,16.453,0.96]
[1673575711491,68.40191547,16.466,16.452,115.2056]
[1673575711693,10.0,16.465,16.452,115.2056]
[1673575711905,12.62,16.46,16.452,115.2056]
[1673575712534,12.51178464,16.46,16.452,115.2056]
[1673575715796,1.92,16.459,16.452,115.2056]
[1673575722007,1.92,16.459,16.449,20.0]
[1673575723688,12.51178464,16.46,16.449,20.0]
[1673575724011,12.51178464,16.46,16.45,10.0]
[1673575726744,10.0,16.463,16.45,10.0]
[1673575727049,10.0,16.465,16.45,10.0]
[1673575727253,10.0,16.465,16.451,1.92]
[1673575727893,10.0,16.465,16.452,113.7806]
[1673575728924,1.92,16.464,16.452,113.7806]
[1673575730719,18.92,16.464,16.452,113.7806]
[1673575730932,12.67,16.46,16.452,113.7806]
[1673575731145,10.96,16.459,16.452,113.7806]
[1673575731676,0.96,16.458,16.452,113.7806]
[1673575732832,0.96,16.459,16.452,113.7806]
[1673575733033,12.67,16.46,16.452,113.7806]
[1673575741680,12.67,16.46,16.449,20.0]
[1673575741880,21.92,16.459,16.443,118.1911]
[1673575742307,57.46683801,16.458,16.443,118.1911]
[1673575742624,51.42683801,16.457,16.443,118.1911]
[1673575742834,0.96,16.456,16.443,118.1911]
[1673575743047,0.96,16.455,16.443,118.1911]
[1673575743444,0.96,16.454,16.443,118.1911]
[1673575743655,0.96,16.453,16.443,118.1911]
[1673575743865,0.96,16.452,16.443,118.1911]
[1673575744399,0.96,16.453,16.443,118.1911]
[1673575744613,10.0,16.456,16.443,118.1911]
[1673575744934,1.92,16.455,16.443,118.1911]
[1673575745980,0.96,16.455,16.443,118.1911]
[1673575746305,10.0,16.456,16.444,1.92]
[1673575747677,10.0,16.456,16.443,118.1911]
[1673575747982,1.92,16.455,16.443,118.1911]
[1673575752844,10.0,16.456,16.443,118.1911]
[1673575753790,30.0,16.457,16.444,1.92]
[1673575753973,30.0,16.457,16.443,118.1911]
[1673575754823,1.92,16.456,16.443,118.1911]
[1673575755566,30.0,16.457,16.443,118.1911]
[1673575755779,50.46683801,16.457,16.444,10.0]
[1673575755997,20.0,16.457,16.444,10.0]
[1673575756819,20.0,16.457,16.443,118.1911]
[1673575756820,1.92,16.456,16.443,118.1911]
[1673575757032,11.92,16.456,16.443,118.1911]
[1673575757467,10.0,16.455,16.443,118.1911]
[1673575757661,0.96,16.454,16.443,118.1911]
[1673575757871,0.96,16.453,16.443,118.1911]
[1673575758081,0.96,16.452,16.443,118.1911]
[1673575758291,0.96,16.451,16.443,118.1911]
[1673575758705,0.96,16.452,16.443,118.1911]
[1673575764707,0.96,16.451,16.443,118.1911]
[1673575764923,10.0,16.455,16.443,118.1911]
[1673575765129,10.0,16.459,16.443,118.1911]
[1673575765343,12.6,16.46,16.444,10.96]
[1673575765665,20.0,16.456,16.445,10.0]
[1673575765859,12.6,16.46,16.446,20.96]
[1673575766075,12.6,16.46,16.447,114.2223]
[1673575766281,12.6,16.46,16.448,20.0]
[1673575766501,12.6,16.46,16.449,10.0]
[1673575767350,1.92,16.459,16.449,10.0]
[1673575767549,12.6,16.46,16.449,10.0]
[1673575767867,12.6,16.46,16.45,1.92]
[1673575768485,12.6,16.46,16.448,20.0]
[1673575768689,0.96,16.459,16.448,20.0]
[1673575768904,1.92,16.458,16.448,20.0]
[1673575772074,32.38683801,16.458,16.44,22.73]
[1673575772389,17.0,16.457,16.442,117.9965]
[1673575772604,30.96,16.456,16.442,117.9965]
[1673575772924,62.38683801,16.456,16.442,117.9965]
[1673575773332,10.0,16.455,16.442,117.9965]
[1673575773542,0.96,16.454,16.442,117.9965]
[1673575773747,0.96,16.453,16.442,117.9965]
[1673575773970,0.96,16.452,16.442,117.9965]
[1673575774499,0.96,16.451,16.442,117.9965]
[1673575776608,10.0,16.455,16.442,117.9965]
[1673575776819,1.92,16.454,16.442,117.9965]
[1673575780704,1.92,16.454,16.436,10.0]
[1673575780902,63.23,16.45,16.434,109.4767]
[1673575781112,37.96,16.449,16.434,109.4767]
[1673575781330,169.10706964,16.449,16.434,109.4767]
[1673575781646,12.67,16.44,16.434,109.4767]
[1673575781958,1.92,16.439,16.434,109.4767]
[1673575783432,1.92,16.439,16.42,12.69]
[1673575783741,1.92,16.439,16.427,112.6947]
[1673575785109,31.92,16.439,16.427,112.6947]
[1673575785338,62.38683801,16.439,16.427,112.6947]
[1673575785538,10.0,16.438,16.427,112.6947]
[1673575785738,10.0,16.436,16.427,112.6947]
[1673575785929,0.96,16.435,16.427,112.6947]
[1673575786142,0.96,16.434,16.427,112.6947]
[1673575786351,0.96,16.433,16.427,112.6947]
[1673575786777,0.96,16.432,16.427,112.6947]
[1673575786988,0.96,16.431,16.427,112.6947]
[1673575787620,10.0,16.436,16.427,112.6947]
[1673575787840,1.92,16.435,16.427,112.6947]
[1673575795623,10.0,16.436,16.427,112.6947]
[1673575795839,10.0,16.437,16.427,112.6947]
[1673575796035,20.0,16.436,16.427,112.6947]
[1673575797524,1.92,16.435,16.427,112.6947]
[1673575798780,0.96,16.435,16.427,112.6947]
[1673575798967,20.0,16.436,16.427,112.6947]
[1673575800236,1.92,16.435,16.427,112.6947]
[1673575800445,11.92,16.435,16.427,112.6947]
[1673575805189,20.0,16.436,16.427,112.6947]
[1673575805711,20.0,16.437,16.427,112.6947]
[1673575806750,1.92,16.436,16.427,112.6947]
[1673575809289,53.24683801,16.44,16.428,20.0]
[1673575809502,12.78,16.44,16.428,20.0]
[1673575809702,13.95358,16.448,16.429,10.96]
[1673575810025,30.46683801,16.445,16.428,30.0]
[1673575810216,30.46683801,16.445,16.428,20.0]
[1673575810848,1.92,16.44,16.429,17.0]
[1673575812526,14.59,16.44,16.428,20.0]
[1673575816122,14.59,16.44,16.428,30.0]
[1673575817902,12.67,16.44,16.429,10.96]
[1673575818103,30.46683801,16.445,16.429,10.96]
[1673575818313,10.0,16.446,16.429,10.96]
[1673575819271,0.96,16.443,16.429,10.96]
[1673575819465,10.0,16.446,16.429,10.96]
[1673575819684,10.0,16.447,16.43,0.96]
[1673575819891,20.0,16.446,16.43,0.96]
[1673575820739,0.96,16.445,16.428,20.0]
[1673575821056,10.0,16.443,16.428,20.0]
[1673575821264,0.96,16.442,16.428,20.0]
[1673575821483,1.92,16.442,16.428,30.0]
[1673575822111,1.92,16.442,16.429,10.0]
[1673575824527,1.92,16.442,16.428,20.0]
[1673575825499,1.92,16.442,16.429,10.0]
[1673575826212,1.92,16.442,16.428,30.0]
[1673575826423,1.92,16.442,16.429,1.92]
[1673575826634,1.92,16.442,16.429,11.92]
[1673575827470,1.92,16.442,16.428,20.0]
[1673575827686,12.62,16.44,16.428,20.0]
[1673575828008,1.92,16.439,16.428,20.0]
[1673575828830,21.92,16.439,16.427,112.6947]
[1673575834926,12.62,16.44,16.428,10.0]
[1673575835143,12.62,16.44,16.429,20.0]
[1673575836187,12.62,16.44,16.43,1.92]
[1673575837353,12.62,16.44,16.43,11.92]
[1673575840825,12.62,16.44,16.43,10.0]
[1673575841037,12.62,16.44,16.429,20.0]
[1673575841251,1.92,16.439,16.428,20.0]
[1673575841884,0.96,16.438,16.428,20.0]
[1673575844519,0.96,16.437,16.428,20.0]
[1673575844904,0.96,16.436,16.428,20.0]
[1673575845115,0.96,16.435,16.428,20.0]
[1673575845337,10.96,16.438,16.428,20.0]
[1673575845530,0.96,16.437,16.428,20.0]
[1673575846396,22.62,16.44,16.428,20.0]
[1673575846712,1.92,16.439,16.428,20.0]
[1673575847447,1.92,16.439,16.428,30.0]
[1673575850499,1.92,16.439,16.428,20.0]
[1673575852148,1.92,16.439,16.42,12.66]
[1673575852149,31.92,16.439,16.42,12.66]
[1673575852362,31.92,16.439,16.422,118.2195]
[1673575852587,10.0,16.438,16.422,118.2195]
[1673575852794,20.96,16.437,16.422,118.2195]
[1673575853119,21.92,16.437,16.422,118.2195]
[1673575855848,21.92,16.437,16.423,10.0]
[1673575856061,21.92,16.437,16.422,118.2195]
[1673575857534,21.92,16.437,16.423,10.0]
[1673575859937,21.92,16.437,16.422,118.2195]
[1673575862456,21.92,16.437,16.426,17.0]
[1673575863221,10.0,16.436,16.426,17.0]
[1673575863396,0.96,16.435,16.426,17.0]
[1673575863612,0.96,16.434,16.426,17.0]
[1673575865833,0.96,16.433,16.422,118.2195]
[1673575866246,12.62,16.43,16.422,118.2195]
[1673575866458,0.96,16.429,16.422,118.2195]
[1673575866785,12.62,16.43,16.422,118.2195]
[1673575867517,1.92,16.429,16.422,118.2195]
[1673575867721,12.62,16.43,16.422,118.2195]
[1673575867931,1.92,16.429,16.422,118.2195]
[1673575868676,0.96,16.429,16.422,118.2195]
[1673575869100,12.62,16.43,16.422,118.2195]
[1673575873422,1.92,16.429,16.422,118.2195]
[1673575875089,12.62,16.43,16.422,118.2195]
[1673575875731,57.26570989,16.434,16.422,118.2195]
[1673575876769,0.96,16.433,16.422,118.2195]
[1673575876980,1.92,16.433,16.422,118.2195]
[1673575877502,1.92,16.433,16.423,17.0]
[1673575878239,10.0,16.435,16.423,17.0]
[1673575878451,20.0,16.437,16.424,11.92]
[1673575878864,20.0,16.437,16.425,17.0]
[1673575880046,1.92,16.436,16.425,17.0]
[1673575882660,1.92,16.436,16.425,16.88186704]
[1673575882866,1.92,16.436,16.424,1.92]
[1673575883623,11.92,16.436,16.424,1.92]
[1673575884889,11.92,16.436,16.422,118.2195]
[1673575888771,10.0,16.435,16.422,118.2195]
[1673575888959,0.96,16.434,16.423,17.0]
[1673575889170,0.96,16.433,16.423,17.0]
[1673575889385,0.96,16.434,16.423,17.0]
[1673575895714,0.96,16.434,16.423,27.0]
[1673575895912,10.0,16.435,16.423,27.0]
[1673575896655,10.0,16.435,16.423,17.0]
[1673575900424,1.92,16.434,16.423,17.0]
[1673575902418,10.0,16.435,16.423,17.0]
[1673575903792,20.0,16.437,16.424,0.96]
[1673575904109,20.0,16.436,16.424,1.92]
[1673575904313,20.0,16.439,16.424,11.92]
[1673575904518,12.6,16.44,16.424,11.92]
[1673575904731,12.6,16.44,16.425,37.0]
[1673575905161,12.6,16.44,16.426,11.92]
[1673575905378,12.6,16.44,16.427,20.0]
[1673575905802,12.6,16.44,16.428,1.92]
[1673575906303,12.6,16.44,16.428,112.199]
[1673575906512,12.6,16.44,16.429,37.0]
[1673575907775,12.6,16.44,16.43,0.96]
[1673575907985,12.6,16.44,16.43,1.92]
[1673575908634,12.6,16.44,16.429,20.0]
[1673575910417,12.6,16.44,16.43,17.0]
[1673575910632,0.96,16.439,16.429,20.0]
[1673575910930,12.6,16.44,16.429,20.0]
[1673575911141,12.6,16.44,16.43,0.96]
[1673575911478,12.6,16.44,16.429,20.0]
[1673575912638,12.6,16.44,16.43,17.0]
[1673575913023,12.6,16.44,16.429,20.0]
[1673575913238,1.92,16.439,16.429,20.0]
[1673575915363,1.92,16.439,16.43,17.0]
[1673575917455,0.96,16.439,16.43,17.0]
[1673575917876,1.92,16.439,16.43,17.0]
[1673575918625,0.96,16.439,16.43,17.0]
[1673575918825,12.6,16.44,16.43,17.0]
[1673575919033,12.6,16.44,16.431,10.0]
[1673575920401,12.6,16.44,16.432,17.0]
[1673575924329,63.34,16.45,16.432,17.0]
[1673575924502,1.92,16.443,16.432,17.0]
[1673575929897,0.96,16.443,16.432,17.0]
[1673575930114,10.0,16.449,16.432,17.0]
[1673575930417,10.0,16.448,16.432,17.0]
[1673575931256,57.00570989,16.447,16.432,17.0]
[1673575931474,21.92,16.446,16.433,1.92]
[1673575931683,21.83005912,16.446,16.433,1.92]
[1673575931997,19.91005912,16.446,16.433,1.92]
[1673575932210,10.0,16.449,16.433,1.92]
[1673575932824,67.00570989,16.449,16.433,1.92]
[1673575933244,20.0,16.448,16.433,1.92]
[1673575933459,10.0,16.454,16.433,21.92]
[1673575933678,10.0,16.454,16.434,224.5605]
[1673575933871,10.0,16.454,16.435,28.92]
[1673575934081,10.0,16.454,16.436,20.0]
[1673575934288,10.0,16.454,16.437,0.96]
[1673575934616,10.0,16.454,16.436,20.0]
[1673575934821,10.96,16.451,16.437,17.0]
[1673575935045,10.96,16.451,16.438,20.0]
[1673575935254,12.67,16.45,16.435,20.0]
[1673575935595,10.96,16.449,16.435,20.0]
[1673575935773,10.96,16.449,16.436,1.92]
[1673575936728,10.96,16.449,16.435,20.0]
[1673575936929,0.96,16.448,16.434,224.5605]
[1673575937255,0.96,16.447,16.434,224.5605]
[1673575937659,0.96,16.446,16.434,224.5605]
[1673575937869,20.96,16.446,16.434,224.5605]
[1673575938079,0.96,16.445,16.435,17.0]
[1673575938289,0.96,16.444,16.434,224.5605]
[1673575938605,0.96,16.443,16.434,224.5605]
[1673575938810,0.96,16.442,16.434,224.5605]
[1673575939365,0.96,16.442,16.435,17.0]
[1673575943999,12.65,16.44,16.435,17.0]
[1673575944207,12.65,16.44,16.434,114.5875]
[1673575945591,12.65,16.44,16.435,17.0]
[1673575956729,10.0,16.445,16.435,17.0]
[1673575957043,1.92,16.444,16.435,17.0]
[1673575958406,1.92,16.444,16.434,114.5875]
[1673575958728,10.0,16.443,16.434,114.5875]
[1673575959038,0.96,16.442,16.434,114.5875]
[1673575959254,0.96,16.441,16.434,114.5875]
[1673575959768,0.96,16.44,16.434,114.5875]
[1673575961865,10.0,16.443,16.435,17.0]
[1673575963341,1.92,16.442,16.435,17.0]
[1673575963863,1.92,16.442,16.435,16.88236907]
[1673575964415,1.92,16.442,16.434,114.5875]
[1673575979551,10.0,16.443,16.434,114.5875]
[1673575979752,20.0,16.446,16.434,114.5875]
[1673575980707,20.0,16.446,16.435,17.0]
[1673575982590,10.0,16.445,16.435,17.0]
[1673575982789,1.92,16.444,16.435,17.0]
[1673575997858,12.5,16.44,16.435,17.0]
[1673576002269,12.5,16.44,16.434,114.5875]
[1673576003723,12.5,16.44,16.435,17.0]
[1673576004483,12.5,16.44,16.434,114.5875]
[1673576004786,10.0,16.445,16.434,114.5875]
[1673576005001,1.92,16.444,16.435,17.0]
[1673576018980,1.92,16.444,16.434,114.5875]
[1673576019305,10.0,16.443,16.434,114.5875]